[Event "*** SCC Grand Prix: Titled Tuesday Blitz"]
[Site "Chess.com"]
[Date "2020.08.11"]
[Round "2"]
[White "Leonid_Starozhilov"]
[Black "bazar-wokzal"]
[Result "1-0"]
[WhiteElo "2700"]
[BlackElo "2465"]
[TimeControl "180+1"]
[EndTime "10:19:42 PDT"]
[Termination "Leonid_Starozhilov won by resignation"]

1. c4 {[%clk 0:03:00.9]} 1... f5 {[%clk 0:02:59.3]} 2. Nc3 {[%clk 0:02:58.5]}
2... Nf6 {[%clk 0:02:59]} 3. f4 {[%clk 0:02:58.6]} 3... g6 {[%clk 0:02:55]} 4.
Nf3 {[%clk 0:02:58.4]} 4... Bg7 {[%clk 0:02:55.3]} 5. g3 {[%clk 0:02:57.9]} 5...
O-O {[%clk 0:02:55.5]} 6. Bg2 {[%clk 0:02:58.3]} 6... d6 {[%clk 0:02:55.7]} 7.
O-O {[%clk 0:02:57.9]} 7... Nc6 {[%clk 0:02:53.6]} 8. d4 {[%clk 0:02:53.5]} 8...
e5 {[%clk 0:02:49.3]} 9. d5 {[%clk 0:02:45.2]} 9... Na5 {[%clk 0:02:35.8]} 10.
fxe5 {[%clk 0:02:38.8]} 10... dxe5 {[%clk 0:02:30]} 11. b3 {[%clk 0:02:32]}
11... e4 {[%clk 0:02:27]} 12. Nd4 {[%clk 0:02:28.2]} 12... c5 {[%clk 0:02:22.7]}
13. Nc2 {[%clk 0:02:21.5]} 13... a6 {[%clk 0:02:01.2]} 14. Bd2 {[%clk
0:02:11.5]} 14... b5 {[%clk 0:01:51.6]} 15. Ne3 {[%clk 0:02:02.1]} 15... Nd7
{[%clk 0:01:41.8]} 16. Rc1 {[%clk 0:01:59.6]} 16... Ne5 {[%clk 0:01:29.8]} 17.
cxb5 {[%clk 0:01:54.1]} 17... axb5 {[%clk 0:01:29.1]} 18. Nxb5 {[%clk
0:01:54.4]} 18... Qb6 {[%clk 0:01:15.8]} 19. a4 {[%clk 0:01:52.1]} 19... Bd7
{[%clk 0:01:02.4]} 20. Nc4 {[%clk 0:01:39]} 20... Naxc4 {[%clk 0:00:54.1]} 21.
bxc4 {[%clk 0:01:39.9]} 21... Ra6 {[%clk 0:00:43.6]} 22. Kh1 {[%clk 0:01:17.7]}
22... Rfa8 {[%clk 0:00:42.5]} 23. a5 {[%clk 0:01:17.9]} 23... Qb8 {[%clk
0:00:39.3]} 24. Qb3 {[%clk 0:01:07.1]} 24... Nxc4 {[%clk 0:00:36.1]} 25. Qxc4
{[%clk 0:01:00]} 25... Bxb5 {[%clk 0:00:34.3]} 26. Qxc5 {[%clk 0:00:59.6]} 26...
Bxe2 {[%clk 0:00:34.3]} 27. Rfe1 {[%clk 0:00:54.7]} 27... Bd3 {[%clk 0:00:32.4]}
28. Bf1 {[%clk 0:00:34.7]} 28... Bxf1 {[%clk 0:00:23.9]} 29. Rxf1 {[%clk
0:00:35.6]} 29... Qd6 {[%clk 0:00:24.1]} 30. Qc4 {[%clk 0:00:28.4]} 30... Rd8
{[%clk 0:00:21.3]} 31. Bb4 {[%clk 0:00:26.2]} 31... Qf6 {[%clk 0:00:21.6]} 32.
Be7 {[%clk 0:00:21.4]} 32... Qxe7 {[%clk 0:00:20.2]} 33. d6+ {[%clk 0:00:13.5]}
33... Qf7 {[%clk 0:00:19.7]} 34. Qxa6 {[%clk 0:00:14.2]} 34... e3 {[%clk
0:00:18.6]} 35. Qd3 {[%clk 0:00:13.2]} 35... Bh6 {[%clk 0:00:16.5]} 36. Rcd1
{[%clk 0:00:12]} 36... Qe6 {[%clk 0:00:16.5]} 37. Rfe1 {[%clk 0:00:11.1]} 37...
Rd7 {[%clk 0:00:16.6]} 38. a6 {[%clk 0:00:10.9]} 38... f4 {[%clk 0:00:16.6]} 39.
a7 {[%clk 0:00:09.8]} 39... Rxa7 {[%clk 0:00:16]} 40. d7 {[%clk 0:00:10.3]}
40... Rxd7 {[%clk 0:00:16.2]} 41. Qxd7 {[%clk 0:00:09.8]} 41... Qe4+ {[%clk
0:00:16.6]} 42. Kg1 {[%clk 0:00:10.4]} 42... f3 {[%clk 0:00:17.1]} 43. Qd8+
{[%clk 0:00:09.1]} 43... Bf8 {[%clk 0:00:14.6]} 44. Qd5+ {[%clk 0:00:07.9]}
44... Qxd5 {[%clk 0:00:14.7]} 45. Rxd5 {[%clk 0:00:08.8]} 45... f2+ {[%clk
0:00:15.6]} 46. Kf1 {[%clk 0:00:09.1]} 46... fxe1=Q+ {[%clk 0:00:15.9]} 47. Kxe1
{[%clk 0:00:09.7]} 47... Kf7 {[%clk 0:00:16.4]} 48. Ke2 {[%clk 0:00:10.3]} 48...
Bh6 {[%clk 0:00:15.3]} 49. Rd7+ {[%clk 0:00:10.1]} 49... Kg8 {[%clk 0:00:15.4]}
50. h4 {[%clk 0:00:09.9]} 50... Kh8 {[%clk 0:00:15.1]} 51. Kf3 {[%clk
0:00:08.7]} 51... Kg8 {[%clk 0:00:15.5]} 52. g4 {[%clk 0:00:09.2]} 52... g5
{[%clk 0:00:15.4]} 53. h5 {[%clk 0:00:08.6]} 53... Bf8 {[%clk 0:00:16]} 54. Kxe3
{[%clk 0:00:08.9]} 54... h6 {[%clk 0:00:13.2]} 55. Ke4 {[%clk 0:00:09.4]} 1-0

[Event "*** SCC Grand Prix: Titled Tuesday Blitz"]
[Site "Chess.com"]
[Date "2020.08.11"]
[Round "2"]
[White "tk22h"]
[Black "Joshukid"]
[Result "1-0"]
[WhiteElo "2388"]
[BlackElo "2690"]
[TimeControl "180+1"]
[EndTime "10:19:44 PDT"]
[Termination "tk22h won on time"]

1. c4 {[%clk 0:03:00.9]} 1... g6 {[%clk 0:02:58.7]} 2. Nc3 {[%clk 0:02:59.6]}
2... Bg7 {[%clk 0:02:59.6]} 3. Nf3 {[%clk 0:02:59.6]} 3... d6 {[%clk 0:02:57.6]}
4. d4 {[%clk 0:02:58.8]} 4... e5 {[%clk 0:02:56.1]} 5. dxe5 {[%clk 0:02:58.9]}
5... dxe5 {[%clk 0:02:57]} 6. Qxd8+ {[%clk 0:02:58.7]} 6... Kxd8 {[%clk
0:02:57.9]} 7. Bd2 {[%clk 0:02:58.3]} 7... c6 {[%clk 0:02:57.8]} 8. O-O-O {[%clk
0:02:58.1]} 8... Kc7 {[%clk 0:02:58.5]} 9. h3 {[%clk 0:02:56.9]} 9... h6 {[%clk
0:02:57.2]} 10. g4 {[%clk 0:02:56.2]} 10... Be6 {[%clk 0:02:57.2]} 11. e3 {[%clk
0:02:56.3]} 11... Nd7 {[%clk 0:02:55.2]} 12. Ne4 {[%clk 0:02:54.8]} 12... a5
{[%clk 0:02:48.3]} 13. Bc3 {[%clk 0:02:54.3]} 13... f5 {[%clk 0:02:44.9]} 14.
gxf5 {[%clk 0:02:53.2]} 14... gxf5 {[%clk 0:02:45.8]} 15. Ng3 {[%clk 0:02:53.3]}
15... Ne7 {[%clk 0:02:45.2]} 16. Rg1 {[%clk 0:02:44]} 16... Rhg8 {[%clk
0:02:43.1]} 17. Nh5 {[%clk 0:02:43.7]} 17... Bh8 {[%clk 0:02:40.9]} 18. Be2
{[%clk 0:02:42.9]} 18... b6 {[%clk 0:02:26.1]} 19. b3 {[%clk 0:02:28.5]} 19...
Raf8 {[%clk 0:02:06.7]} 20. Nh4 {[%clk 0:02:12.4]} 20... Nc5 {[%clk 0:01:44.3]}
21. f4 {[%clk 0:02:06.1]} 21... Ne4 {[%clk 0:01:16.4]} 22. Bxe5+ {[%clk
0:02:04.6]} 22... Bxe5 {[%clk 0:01:16.2]} 23. fxe5 {[%clk 0:02:05.5]} 23... Nc3
{[%clk 0:01:16.5]} 24. Nf4 {[%clk 0:01:53.9]} 24... Bc8 {[%clk 0:01:05]} 25.
Rdf1 {[%clk 0:01:42.4]} 25... Nxa2+ {[%clk 0:01:04.1]} 26. Kb2 {[%clk
0:01:42.6]} 26... Nb4 {[%clk 0:01:02.7]} 27. Kc3 {[%clk 0:01:39.3]} 27... Bd7
{[%clk 0:00:48.8]} 28. Nhg6 {[%clk 0:01:32.3]} 28... Nxg6 {[%clk 0:00:45.7]} 29.
Rxg6 {[%clk 0:01:31.8]} 29... Rxg6 {[%clk 0:00:44]} 30. Nxg6 {[%clk 0:01:31.7]}
30... Re8 {[%clk 0:00:43.1]} 31. Rf4 {[%clk 0:01:12.8]} 31... Rg8 {[%clk
0:00:24.5]} 32. Nh4 {[%clk 0:01:03.7]} 32... b5 {[%clk 0:00:21.6]} 33. Bd3
{[%clk 0:01:01]} 33... Rg2 {[%clk 0:00:16.3]} 34. Nxf5 {[%clk 0:00:51.1]} 34...
Na2+ {[%clk 0:00:16.7]} 35. Kd4 {[%clk 0:00:50.5]} 35... Kb6 {[%clk 0:00:13.6]}
36. c5+ {[%clk 0:00:50.1]} 36... Kc7 {[%clk 0:00:13.4]} 37. Nd6 {[%clk
0:00:37.3]} 37... Rd2 {[%clk 0:00:11.5]} 38. Ke4 {[%clk 0:00:36.5]} 38... Nc3+
{[%clk 0:00:11]} 39. Kd4 {[%clk 0:00:36.5]} 39... Ne2+ {[%clk 0:00:11.5]} 40.
Ke4 {[%clk 0:00:36.7]} 40... Nc3+ {[%clk 0:00:12]} 41. Kd4 {[%clk 0:00:36.4]}
41... Ne2+ {[%clk 0:00:10.4]} 42. Ke4 {[%clk 0:00:36.6]} 42... Nxf4 {[%clk
0:00:11.3]} 43. exf4 {[%clk 0:00:36.9]} 43... a4 {[%clk 0:00:12.1]} 44. bxa4
{[%clk 0:00:30.9]} 44... bxa4 {[%clk 0:00:12.7]} 45. Bc4 {[%clk 0:00:30.9]}
45... Bxh3 {[%clk 0:00:08.8]} 46. f5 {[%clk 0:00:30.5]} 46... a3 {[%clk
0:00:08.7]} 47. e6 {[%clk 0:00:30.3]} 47... Bg2+ {[%clk 0:00:03.2]} 48. Ke5
{[%clk 0:00:27.6]} 48... Bd5 {[%clk 0:00:03.5]} 49. Bxd5 {[%clk 0:00:19.6]}
49... Rxd5+ {[%clk 0:00:03.4]} 50. Kf6 {[%clk 0:00:18.1]} 50... a2 {[%clk
0:00:04]} 51. e7 {[%clk 0:00:18.2]} 51... a1=Q+ {[%clk 0:00:04.7]} 52. Kf7
{[%clk 0:00:18.3]} 52... Re5 {[%clk 0:00:03.2]} 53. f6 {[%clk 0:00:15]} 53...
Qa2+ {[%clk 0:00:01.7]} 54. Kf8 {[%clk 0:00:14.4]} 1-0

[Event "*** SCC Grand Prix: Titled Tuesday Blitz"]
[Site "Chess.com"]
[Date "2020.08.11"]
[Round "2"]
[White "GiantThresher"]
[Black "Natalya_Buksa"]
[Result "1-0"]
[WhiteElo "2720"]
[BlackElo "2481"]
[TimeControl "180+1"]
[EndTime "10:19:45 PDT"]
[Termination "GiantThresher won on time"]

1. e4 {[%clk 0:03:00.9]} 1... c5 {[%clk 0:02:59.7]} 2. Nc3 {[%clk 0:03:00.9]}
2... e6 {[%clk 0:02:58.7]} 3. Nf3 {[%clk 0:02:52.3]} 3... d5 {[%clk 0:02:58.5]}
4. d4 {[%clk 0:02:49.5]} 4... dxe4 {[%clk 0:02:57.8]} 5. Nxe4 {[%clk 0:02:49.9]}
5... cxd4 {[%clk 0:02:58.2]} 6. Qxd4 {[%clk 0:02:49.9]} 6... Qxd4 {[%clk
0:02:57.4]} 7. Nxd4 {[%clk 0:02:50.8]} 7... Bd7 {[%clk 0:02:56.4]} 8. Nb5 {[%clk
0:02:48.6]} 8... Bxb5 {[%clk 0:02:50.9]} 9. Bxb5+ {[%clk 0:02:49.5]} 9... Nc6
{[%clk 0:02:50.5]} 10. Bf4 {[%clk 0:02:48.9]} 10... Nf6 {[%clk 0:02:48.7]} 11.
Nd6+ {[%clk 0:02:44.1]} 11... Bxd6 {[%clk 0:02:49.1]} 12. Bxd6 {[%clk 0:02:45]}
12... O-O-O {[%clk 0:02:49.7]} 13. Bg3 {[%clk 0:02:17.4]} 13... Rd5 {[%clk
0:02:21.2]} 14. Bc4 {[%clk 0:02:07.5]} 14... Rc5 {[%clk 0:02:19.3]} 15. Bb3
{[%clk 0:02:04.1]} 15... Nd4 {[%clk 0:02:16.9]} 16. O-O-O {[%clk 0:02:02.2]}
16... Nxb3+ {[%clk 0:02:16.3]} 17. axb3 {[%clk 0:02:03.1]} 17... Rd8 {[%clk
0:02:14.4]} 18. f3 {[%clk 0:02:00.6]} 18... Rcd5 {[%clk 0:02:11]} 19. Bf2 {[%clk
0:01:56.5]} 19... b6 {[%clk 0:02:07.3]} 20. c4 {[%clk 0:01:53.2]} 20... Rxd1+
{[%clk 0:02:07]} 21. Rxd1 {[%clk 0:01:54.1]} 21... Rxd1+ {[%clk 0:02:07]} 22.
Kxd1 {[%clk 0:01:55]} 22... Nd7 {[%clk 0:02:05.8]} 23. Kc2 {[%clk 0:01:54.6]}
23... Kc7 {[%clk 0:02:05.8]} 24. b4 {[%clk 0:01:54.9]} 24... Kc6 {[%clk
0:02:05.7]} 25. b5+ {[%clk 0:01:50.5]} 25... Kd6 {[%clk 0:02:04.1]} 26. b4
{[%clk 0:01:49.4]} 26... e5 {[%clk 0:02:04.4]} 27. Kd3 {[%clk 0:01:48.4]} 27...
f5 {[%clk 0:02:03.3]} 28. Bg1 {[%clk 0:01:43.9]} 28... g6 {[%clk 0:01:40.2]} 29.
Be3 {[%clk 0:01:42.3]} 29... Nf6 {[%clk 0:01:19.9]} 30. c5+ {[%clk 0:01:41.4]}
30... Kc7 {[%clk 0:01:12.7]} 31. Kc4 {[%clk 0:01:40.2]} 31... e4 {[%clk
0:01:07.5]} 32. Bd4 {[%clk 0:01:36.6]} 32... exf3 {[%clk 0:01:05]} 33. gxf3
{[%clk 0:01:37.5]} 33... Nd7 {[%clk 0:00:56.3]} 34. c6 {[%clk 0:01:32.4]} 34...
Nf8 {[%clk 0:00:48.8]} 35. Be5+ {[%clk 0:01:31.8]} 35... Kc8 {[%clk 0:00:47.3]}
36. Kd5 {[%clk 0:01:32.7]} 36... g5 {[%clk 0:00:44.7]} 37. Bf6 {[%clk
0:01:06.7]} 37... g4 {[%clk 0:00:35.3]} 38. f4 {[%clk 0:00:52.1]} 38... Ng6
{[%clk 0:00:34.4]} 39. Bg5 {[%clk 0:00:52.2]} 39... h5 {[%clk 0:00:31.7]} 40.
Kd4 {[%clk 0:00:37.8]} 40... h4 {[%clk 0:00:28.8]} 41. Ke3 {[%clk 0:00:38]}
41... Kc7 {[%clk 0:00:21.9]} 42. Bf6 {[%clk 0:00:36.7]} 42... Kc8 {[%clk
0:00:19.4]} 43. Bc3 {[%clk 0:00:36.4]} 43... h3 {[%clk 0:00:10]} 44. Be1 {[%clk
0:00:35.4]} 44... Ne7 {[%clk 0:00:07.7]} 45. Kd4 {[%clk 0:00:34.7]} 45... Ng6
{[%clk 0:00:07.7]} 46. Bg3 {[%clk 0:00:33.9]} 46... Kc7 {[%clk 0:00:07.7]} 47.
Kd5 {[%clk 0:00:34.5]} 47... Ne7+ {[%clk 0:00:04.3]} 48. Ke6 {[%clk 0:00:34.7]}
48... Nc8 {[%clk 0:00:02]} 49. Kxf5 {[%clk 0:00:27.9]} 49... Nd6+ {[%clk
0:00:02.1]} 50. Kxg4 {[%clk 0:00:28.8]} 50... Nxb5 {[%clk 0:00:02.6]} 51. Kxh3
{[%clk 0:00:29.1]} 51... Kxc6 {[%clk 0:00:03.5]} 52. Kg4 {[%clk 0:00:30]} 52...
Nd6 {[%clk 0:00:03.7]} 53. h4 {[%clk 0:00:28.2]} 53... a5 {[%clk 0:00:03.5]} 54.
bxa5 {[%clk 0:00:28.2]} 54... bxa5 {[%clk 0:00:04.4]} 55. h5 {[%clk 0:00:28.5]}
55... Nf7 {[%clk 0:00:04.5]} 56. Kf5 {[%clk 0:00:27.8]} 56... a4 {[%clk
0:00:04.9]} 57. Be1 {[%clk 0:00:27.7]} 57... a3 {[%clk 0:00:05.3]} 58. Bc3
{[%clk 0:00:27.6]} 58... Kd6 {[%clk 0:00:04.7]} 59. Kg6 {[%clk 0:00:28]} 59...
Ke7 {[%clk 0:00:03.9]} 60. Bb4+ {[%clk 0:00:27.8]} 60... Ke6 {[%clk 0:00:04.3]}
61. f5+ {[%clk 0:00:26.6]} 1-0

[Event "*** SCC Grand Prix: Titled Tuesday Blitz"]
[Site "Chess.com"]
[Date "2020.08.11"]
[Round "2"]
[White "Koksik_13"]
[Black "anskam"]
[Result "0-1"]
[WhiteElo "2597"]
[BlackElo "1537"]
[TimeControl "180+1"]
[EndTime "10:19:47 PDT"]
[Termination "anskam won by checkmate"]

1. e4 {[%clk 0:03:00.6]} 1... e5 {[%clk 0:02:58.3]} 2. Nf3 {[%clk 0:03:00.5]}
2... Nc6 {[%clk 0:02:57.7]} 3. Nc3 {[%clk 0:03:01]} 3... Nf6 {[%clk 0:02:56.2]}
4. d4 {[%clk 0:03:01.3]} 4... exd4 {[%clk 0:02:55]} 5. Nxd4 {[%clk 0:03:02.2]}
5... Nxd4 {[%clk 0:02:54.4]} 6. Qxd4 {[%clk 0:03:02]} 6... d6 {[%clk 0:02:53.8]}
7. Bg5 {[%clk 0:03:01.8]} 7... Be7 {[%clk 0:02:52.8]} 8. O-O-O {[%clk
0:03:01.1]} 8... O-O {[%clk 0:02:51.3]} 9. Kb1 {[%clk 0:03:01.5]} 9... h6 {[%clk
0:02:50.2]} 10. Bc1 {[%clk 0:02:51.9]} 10... a6 {[%clk 0:02:49.3]} 11. f3 {[%clk
0:02:51.3]} 11... b5 {[%clk 0:02:46.8]} 12. g4 {[%clk 0:02:51.9]} 12... c5
{[%clk 0:02:45.3]} 13. h4 {[%clk 0:02:52.6]} 13... cxd4 {[%clk 0:02:43.8]} 14.
Rxd4 {[%clk 0:02:41.6]} 14... Be6 {[%clk 0:02:42.8]} 15. g5 {[%clk 0:02:41.5]}
15... Nh5 {[%clk 0:02:40.1]} 16. gxh6 {[%clk 0:02:40]} 16... g6 {[%clk
0:02:36.6]} 17. f4 {[%clk 0:02:40.2]} 17... Qa5 {[%clk 0:02:30.2]} 18. f5 {[%clk
0:02:38.7]} 18... gxf5 {[%clk 0:02:24.2]} 19. exf5 {[%clk 0:02:39.6]} 19... Bxf5
{[%clk 0:02:22.9]} 20. Nd5 {[%clk 0:02:34.5]} 20... Bf6 {[%clk 0:02:17.1]} 21.
Bd2 {[%clk 0:02:16]} 21... Qd8 {[%clk 0:02:09.6]} 22. Nxf6+ {[%clk 0:02:14.3]}
22... Qxf6 {[%clk 0:02:07.3]} 23. Bc3 {[%clk 0:02:05.6]} 23... Qe6 {[%clk
0:02:02.1]} 24. Bg2 {[%clk 0:01:56.8]} 24... Kh7 {[%clk 0:01:56.7]} 25. Bd5
{[%clk 0:01:55.8]} 25... Qe3 {[%clk 0:01:49.8]} 26. Re1 {[%clk 0:01:50.3]} 26...
Qf2 {[%clk 0:01:45.6]} 27. Rc1 {[%clk 0:01:45.1]} 27... Rae8 {[%clk 0:01:41.1]}
28. Rdd1 {[%clk 0:01:37]} 28... Re2 {[%clk 0:01:35.2]} 29. Rf1 {[%clk
0:01:34.1]} 29... Bxc2+ {[%clk 0:01:31.5]} 30. Ka1 {[%clk 0:01:34]} 30... Qxh4
{[%clk 0:01:23.7]} 31. Bxf7 {[%clk 0:01:22.3]} 31... Kxh6 {[%clk 0:01:09.7]} 32.
a3 {[%clk 0:00:45.1]} 32... Ng3 {[%clk 0:00:57.9]} 33. Rf3 {[%clk 0:00:37.4]}
33... Ne4 {[%clk 0:00:41.3]} 34. Bd4 {[%clk 0:00:30.9]} 34... Nd2 {[%clk
0:00:37.1]} 35. Rf6+ {[%clk 0:00:23.4]} 35... Qxf6 {[%clk 0:00:30]} 36. Rh1+
{[%clk 0:00:19.2]} 36... Kg7 {[%clk 0:00:27.1]} 37. Bxf6+ {[%clk 0:00:16.5]}
37... Kxf6 {[%clk 0:00:26]} 38. Bh5 {[%clk 0:00:13.2]} 38... Rh8 {[%clk
0:00:24.3]} 39. Rf1+ {[%clk 0:00:12.2]} 39... Ke7 {[%clk 0:00:23.3]} 40. Bxe2
{[%clk 0:00:12.2]} 40... Nxf1 {[%clk 0:00:20.3]} 41. Bxf1 {[%clk 0:00:11.8]}
41... Rh1 {[%clk 0:00:19.4]} 42. b4 {[%clk 0:00:12.2]} 42... Rxf1+ {[%clk
0:00:17.7]} 43. Kb2 {[%clk 0:00:13.1]} 43... Ba4 {[%clk 0:00:16.4]} 44. Kc3
{[%clk 0:00:14]} 44... Ke6 {[%clk 0:00:15.9]} 45. Kd4 {[%clk 0:00:13.7]} 45...
d5 {[%clk 0:00:15.5]} 46. Ke3 {[%clk 0:00:14.6]} 46... Ke5 {[%clk 0:00:14.5]}
47. Kd2 {[%clk 0:00:15.5]} 47... Ke4 {[%clk 0:00:14]} 48. Kc3 {[%clk 0:00:16.4]}
48... d4+ {[%clk 0:00:13.5]} 49. Kd2 {[%clk 0:00:17.3]} 49... d3 {[%clk
0:00:12.4]} 50. Kc3 {[%clk 0:00:17.3]} 50... Ke3 {[%clk 0:00:12]} 51. Kb2 {[%clk
0:00:18.2]} 51... d2 {[%clk 0:00:10.9]} 52. Kc3 {[%clk 0:00:18.8]} 52... d1=Q
{[%clk 0:00:09]} 53. Kb2 {[%clk 0:00:19.7]} 53... Qc2# {[%clk 0:00:07.6]} 0-1

[Event "*** SCC Grand Prix: Titled Tuesday Blitz"]
[Site "Chess.com"]
[Date "2020.08.11"]
[Round "2"]
[White "Mostii"]
[Black "evgenyermolaev"]
[Result "0-1"]
[WhiteElo "2262"]
[BlackElo "2481"]
[TimeControl "180+1"]
[EndTime "10:19:49 PDT"]
[Termination "evgenyermolaev won on time"]

1. d4 {[%clk 0:03:00.9]} 1... c5 {[%clk 0:02:58]} 2. Nf3 {[%clk 0:03:01.8]} 2...
cxd4 {[%clk 0:02:57.3]} 3. g3 {[%clk 0:03:02.4]} 3... g6 {[%clk 0:02:55.4]} 4.
Bg2 {[%clk 0:03:03.3]} 4... Bg7 {[%clk 0:02:55.6]} 5. Nxd4 {[%clk 0:03:03.6]}
5... Nc6 {[%clk 0:02:55.5]} 6. Nxc6 {[%clk 0:03:03.9]} 6... bxc6 {[%clk
0:02:56.4]} 7. O-O {[%clk 0:03:04.5]} 7... Nf6 {[%clk 0:02:55.8]} 8. c4 {[%clk
0:03:04.4]} 8... O-O {[%clk 0:02:55.5]} 9. Nc3 {[%clk 0:03:04.8]} 9... d6 {[%clk
0:02:56]} 10. Qc2 {[%clk 0:03:03.2]} 10... Bf5 {[%clk 0:02:46.6]} 11. e4 {[%clk
0:03:03]} 11... Bg4 {[%clk 0:02:41.4]} 12. b3 {[%clk 0:03:01.5]} 12... Qd7
{[%clk 0:02:39.2]} 13. Re1 {[%clk 0:03:00.3]} 13... Bh3 {[%clk 0:02:36.8]} 14.
Bh1 {[%clk 0:03:00.4]} 14... h5 {[%clk 0:02:21.8]} 15. Bb2 {[%clk 0:02:59.4]}
15... h4 {[%clk 0:02:19.5]} 16. Rad1 {[%clk 0:02:49.6]} 16... hxg3 {[%clk
0:02:12.6]} 17. hxg3 {[%clk 0:02:49.5]} 17... Ng4 {[%clk 0:02:11.2]} 18. c5
{[%clk 0:02:31.6]} 18... Qe6 {[%clk 0:01:58.7]} 19. cxd6 {[%clk 0:02:16.4]}
19... exd6 {[%clk 0:01:59.6]} 20. Ne2 {[%clk 0:02:09.3]} 20... Ne5 {[%clk
0:01:23.2]} 21. Nf4 {[%clk 0:02:04.7]} 21... Qd7 {[%clk 0:01:19.4]} 22. Nxh3
{[%clk 0:01:58.5]} 22... Qxh3 {[%clk 0:01:20.3]} 23. Rxd6 {[%clk 0:01:40.7]}
23... Rad8 {[%clk 0:01:04.7]} 24. Bg2 {[%clk 0:01:21.8]} 24... Nf3+ {[%clk
0:00:53.8]} 25. Bxf3 {[%clk 0:01:02.3]} 25... Rxd6 {[%clk 0:00:52.7]} 26. Ba3
{[%clk 0:01:00.2]} 26... c5 {[%clk 0:00:45]} 27. Bxc5 {[%clk 0:00:56.9]} 27...
Rc8 {[%clk 0:00:26.2]} 28. b4 {[%clk 0:00:56]} 28... Bd4 {[%clk 0:00:25.7]} 29.
Bg2 {[%clk 0:00:41.4]} 29... Qxg3 {[%clk 0:00:22]} 30. Bxd4 {[%clk 0:00:41.5]}
30... Qxg2+ {[%clk 0:00:22.4]} 31. Kxg2 {[%clk 0:00:41.1]} 31... Rxc2 {[%clk
0:00:23]} 32. Bxa7 {[%clk 0:00:37.3]} 32... Rxa2 {[%clk 0:00:20.1]} 33. Bc5
{[%clk 0:00:36.4]} 33... Rdd2 {[%clk 0:00:19.6]} 34. b5 {[%clk 0:00:32.5]} 34...
Re2 {[%clk 0:00:10.3]} 35. Rxe2 {[%clk 0:00:26]} 35... Rxe2 {[%clk 0:00:11.2]}
36. Kf3 {[%clk 0:00:22.9]} 36... Rb2 {[%clk 0:00:10.2]} 37. b6 {[%clk
0:00:22.5]} 37... Rb3+ {[%clk 0:00:07.1]} 38. Kf4 {[%clk 0:00:22.1]} 38... Rb5
{[%clk 0:00:06.4]} 39. Be3 {[%clk 0:00:21.5]} 39... f6 {[%clk 0:00:06.6]} 40.
Kf3 {[%clk 0:00:19.4]} 40... Kf7 {[%clk 0:00:06.2]} 41. Ke2 {[%clk 0:00:19.8]}
41... Ke6 {[%clk 0:00:04.4]} 42. Kd3 {[%clk 0:00:20.2]} 42... g5 {[%clk
0:00:04.5]} 43. Kc4 {[%clk 0:00:19.5]} 43... Rb2 {[%clk 0:00:04.3]} 44. Kc5
{[%clk 0:00:19.3]} 44... Kd7 {[%clk 0:00:02.7]} 45. Kd5 {[%clk 0:00:19.3]} 45...
Rb4 {[%clk 0:00:02]} 46. Kc5 {[%clk 0:00:18.8]} 46... Rb3 {[%clk 0:00:02.3]} 47.
Kd5 {[%clk 0:00:18.7]} 47... Rb4 {[%clk 0:00:02.6]} 48. Bd4 {[%clk 0:00:18.8]}
48... Rb1 {[%clk 0:00:02.5]} 49. Bxf6 {[%clk 0:00:18.7]} 49... Rxb6 {[%clk
0:00:02.8]} 50. Bxg5 {[%clk 0:00:18.5]} 50... Rb5+ {[%clk 0:00:03.2]} 51. Kd4
{[%clk 0:00:17.9]} 51... Rxg5 {[%clk 0:00:04.1]} 52. Ke3 {[%clk 0:00:18.8]}
52... Rg8 {[%clk 0:00:04.3]} 53. Kf4 {[%clk 0:00:19.7]} 53... Ke6 {[%clk
0:00:05.2]} 54. f3 {[%clk 0:00:20.6]} 54... Rf8+ {[%clk 0:00:05.7]} 55. Ke3
{[%clk 0:00:21.5]} 55... Ke5 {[%clk 0:00:06.3]} 0-1